[Event "Titled Tuesday Blitz February 07 Early 2023"]
[White "Martinez Ramirez, Lennis"]
[Black "Kuzmin, Roman"]
[WhiteFideId "3509079"]
[BlackFideId "44134932"]
[WhiteElo "2426"]
[BlackElo "2198"]
[Result "0-1"]
[Round "06"]
[TimeControl "180+2"]
[Date "2023.02.07"]
[WhiteClock "0:00:09"]
[BlackClock "0:00:08"]

1. d4 {[%clk 0:03:00]}  Nf6 {[%clk 0:02:59]} 2. c4 {[%clk 0:03:00]}  e6 {[%clk 0:02:59]} 3. Nf3 {[%clk 0:02:59]}  d5 {[%clk 0:03:00]} 4. g3 {[%clk 0:03:00]}  Nbd7 {[%clk 0:03:00]} 5. Bg2 {[%clk 0:03:01]}  Be7 {[%clk 0:03:00]} 6. O-O {[%clk 0:02:58]}  O-O {[%clk 0:03:00]} 7. Nbd2 {[%clk 0:02:58]}  c6 {[%clk 0:03:00]} 8. Qc2 {[%clk 0:02:59]}  b6 {[%clk 0:03:00]} 9. e4 {[%clk 0:02:59]}  dxc4 {[%clk 0:03:01]} 10. Nxc4 {[%clk 0:02:56]}  Bb7 {[%clk 0:03:01]} 11. Rd1 {[%clk 0:02:56]}  c5 {[%clk 0:03:00]} 12. dxc5 {[%clk 0:02:16]}  Bxe4 {[%clk 0:02:56]} 13. Qe2 {[%clk 0:02:14]}  Bxc5 {[%clk 0:02:53]} 14. Bg5 {[%clk 0:02:10]}  Bd5 {[%clk 0:02:46]} 15. Nfe5 {[%clk 0:02:07]}  Bxg2 {[%clk 0:02:04]} 16. Kxg2 {[%clk 0:02:07]}  Qc7 {[%clk 0:01:56]} 17. Rac1 {[%clk 0:01:58]}  Nxe5 {[%clk 0:01:55]} 18. Nxe5 {[%clk 0:01:56]}  Qb7+ {[%clk 0:01:50]} 19. f3 {[%clk 0:01:47]}  Nd5 {[%clk 0:01:50]} 20. Nd3 {[%clk 0:01:38]}  Rac8 {[%clk 0:01:40]} 21. a3 {[%clk 0:01:33]}  h6 {[%clk 0:01:39]} 22. Bd2 {[%clk 0:01:31]}  Bd4 {[%clk 0:01:35]} 23. Qe4 {[%clk 0:01:30]}  Bf6 {[%clk 0:01:25]} 24. h4 {[%clk 0:01:30]}  Rxc1 {[%clk 0:01:24]} 25. Rxc1 {[%clk 0:01:28]}  Rc8 {[%clk 0:01:25]} 26. Kh3 {[%clk 0:00:55]}  Rxc1 {[%clk 0:01:22]} 27. Bxc1 {[%clk 0:00:56]}  Qc7 {[%clk 0:01:14]} 28. g4 {[%clk 0:00:56]}  Qe7 {[%clk 0:00:51]} 29. Qe1 {[%clk 0:00:40]}  Bd4 {[%clk 0:00:40]} 30. g5 {[%clk 0:00:39]}  hxg5 {[%clk 0:00:40]} 31. hxg5 {[%clk 0:00:39]}  g6 {[%clk 0:00:39]} 32. Qe4 {[%clk 0:00:38]}  Bg7 {[%clk 0:00:39]} 33. b4 {[%clk 0:00:35]}  Qc7 {[%clk 0:00:37]} 34. b5 {[%clk 0:00:18]}  Qc2 {[%clk 0:00:36]} 35. a4 {[%clk 0:00:17]}  Qd1 {[%clk 0:00:32]} 36. Kg2 {[%clk 0:00:16]}  Qc2+ {[%clk 0:00:19]} 37. Kg3 {[%clk 0:00:15]}  Bc3 {[%clk 0:00:17]} 38. Ba3 {[%clk 0:00:10]}  Qb1 {[%clk 0:00:05]} 39. Kg2 {[%clk 0:00:08]}  Bg7 {[%clk 0:00:03]} 40. Bd6 {[%clk 0:00:08]}  Bf8 {[%clk 0:00:02]} 41. Be5 {[%clk 0:00:07]}  Qc2+ {[%clk 0:00:02]} 42. Kg3 {[%clk 0:00:07]}  Qd1 {[%clk 0:00:02]} 43. Bd4 {[%clk 0:00:07]}  Bg7 {[%clk 0:00:02]} 44. Bxg7 {[%clk 0:00:06]}  Qg1+ {[%clk 0:00:02]} 45. Kh3 {[%clk 0:00:06]}  Qh1+ {[%clk 0:00:02]} 46. Kg3 {[%clk 0:00:06]}  Qg1+ {[%clk 0:00:02]} 47. Kh4 {[%clk 0:00:05]}  Qh2+ {[%clk 0:00:02]} 48. Kg4 {[%clk 0:00:06]}  Qg2+ {[%clk 0:00:02]} 49. Kh4 {[%clk 0:00:05]}  Kxg7 {[%clk 0:00:02]} 50. Qe5+ {[%clk 0:00:05]}  Kh7 {[%clk 0:00:03]} 51. Qe4 {[%clk 0:00:04]}  Qh2+ {[%clk 0:00:03]} 52. Kg4 {[%clk 0:00:04]}  f5+ {[%clk 0:00:03]} 53. gxf6 {[%clk 0:00:05]}  Nxf6+ {[%clk 0:00:04]} 54. Kg5 {[%clk 0:00:05]}  Nxe4+ {[%clk 0:00:04]} 55. fxe4 {[%clk 0:00:06]}  Qg3+ {[%clk 0:00:05]} 56. Kf6 {[%clk 0:00:06]}  Qxd3 {[%clk 0:00:06]} 57. Kxe6 {[%clk 0:00:06]}  Qxe4+ {[%clk 0:00:06]} 58. Kd6 {[%clk 0:00:07]}  Qxa4 {[%clk 0:00:07]} 59. Kc6 {[%clk 0:00:08]}  a6 {[%clk 0:00:07]} 60. Kb7 {[%clk 0:00:09]}  Qxb5 {[%clk 0:00:08]} 0-1


[Site "https://www.chess.com"]

[Event "Titled Tuesday Blitz February 07 Early 2023"]
[White "Han, Yichen"]
[Black "Iljin, Timofey"]
[WhiteFideId "1054430"]
[BlackFideId "14110180"]
[WhiteElo "2413"]
[BlackElo "2329"]
[Result "1-0"]
[Round "06"]
[TimeControl "180+2"]
[Date "2023.02.07"]
[WhiteClock "0:00:27"]
[BlackClock "0:00:02"]

1. Nf3 {[%clk 0:03:00]}  d5 {[%clk 0:02:49]} 2. g3 {[%clk 0:03:00]}  c5 {[%clk 0:02:49]} 3. Bg2 {[%clk 0:03:00]}  Nf6 {[%clk 0:02:50]} 4. O-O {[%clk 0:02:57]}  e6 {[%clk 0:02:48]} 5. d4 {[%clk 0:02:55]}  cxd4 {[%clk 0:02:48]} 6. Nxd4 {[%clk 0:02:55]}  e5 {[%clk 0:02:48]} 7. Nb3 {[%clk 0:02:54]}  Be6 {[%clk 0:02:47]} 8. Bg5 {[%clk 0:02:54]}  Nbd7 {[%clk 0:02:47]} 9. Nc3 {[%clk 0:02:50]}  Be7 {[%clk 0:02:45]} 10. e4 {[%clk 0:02:35]}  dxe4 {[%clk 0:02:32]} 11. Nxe4 {[%clk 0:02:32]}  Nxe4 {[%clk 0:02:33]} 12. Bxe7 {[%clk 0:02:32]}  Nxf2 {[%clk 0:02:18]} 13. Bxd8 {[%clk 0:02:17]}  Nxd1 {[%clk 0:02:18]} 14. Raxd1 {[%clk 0:02:05]}  Rxd8 {[%clk 0:02:15]} 15. Bxb7 {[%clk 0:02:05]}  Ke7 {[%clk 0:02:15]} 16. Bd5 {[%clk 0:02:00]}  Nc5 {[%clk 0:01:55]} 17. Nxc5 {[%clk 0:01:35]}  Bxd5 {[%clk 0:01:53]} 18. b3 {[%clk 0:01:35]}  f6 {[%clk 0:01:42]} 19. c4 {[%clk 0:01:34]}  Ba8 {[%clk 0:01:42]} 20. Kf2 {[%clk 0:01:27]}  h5 {[%clk 0:01:42]} 21. h4 {[%clk 0:01:25]}  g5 {[%clk 0:01:40]} 22. Ke3 {[%clk 0:01:25]}  gxh4 {[%clk 0:01:19]} 23. gxh4 {[%clk 0:01:25]}  Rhg8 {[%clk 0:01:18]} 24. Rg1 {[%clk 0:01:13]}  Bc6 {[%clk 0:00:52]} 25. b4 {[%clk 0:00:59]}  f5 {[%clk 0:00:46]} 26. b5 {[%clk 0:00:55]}  f4+ {[%clk 0:00:45]} 27. Kf2 {[%clk 0:00:56]}  Rxg1 {[%clk 0:00:14]} 28. Rxg1 {[%clk 0:00:42]}  Ba8 {[%clk 0:00:07]} 29. Rg7+ {[%clk 0:00:41]}  Kf6 {[%clk 0:00:05]} 30. Rxa7 {[%clk 0:00:41]}  e4 {[%clk 0:00:03]} 31. b6 {[%clk 0:00:29]}  e3+ {[%clk 0:00:02]} 32. Ke2 {[%clk 0:00:27]} 1-0


[Site "https://www.chess.com"]

[Event "Titled Tuesday Blitz February 07 Early 2023"]
[White "Shapiro, Viktor"]
[Black "Lorenzo De La Riva, Lazaro"]
[WhiteFideId "4175700"]
[BlackFideId "2268809"]
[WhiteElo "2192"]
[BlackElo "2404"]
[Result "0-1"]
[Round "06"]
[TimeControl "180+2"]
[Date "2023.02.07"]
[WhiteClock "0:00:09"]
[BlackClock "0:01:07"]

1. c4 {[%clk 0:03:00]}  e5 {[%clk 0:02:57]} 2. Nc3 {[%clk 0:03:01]}  Nc6 {[%clk 0:02:58]} 3. g3 {[%clk 0:03:01]}  Bc5 {[%clk 0:02:58]} 4. Bg2 {[%clk 0:03:01]}  d6 {[%clk 0:02:57]} 5. e3 {[%clk 0:03:02]}  Bf5 {[%clk 0:02:56]} 6. Nge2 {[%clk 0:02:59]}  Nb4 {[%clk 0:02:55]} 7. O-O {[%clk 0:02:55]}  Bc2 {[%clk 0:02:54]} 8. d4 {[%clk 0:02:50]}  Bxd1 {[%clk 0:02:52]} 9. Rxd1 {[%clk 0:02:47]}  exd4 {[%clk 0:02:52]} 10. exd4 {[%clk 0:02:47]}  Bb6 {[%clk 0:02:45]} 11. c5 {[%clk 0:02:37]}  Ba5 {[%clk 0:02:31]} 12. Bxb7 {[%clk 0:02:35]}  Rb8 {[%clk 0:02:30]} 13. Bf3 {[%clk 0:02:34]}  Nc2 {[%clk 0:02:29]} 14. Rb1 {[%clk 0:02:33]}  Nf6 {[%clk 0:02:26]} 15. Bc6+ {[%clk 0:02:30]}  Kf8 {[%clk 0:02:25]} 16. Ba4 {[%clk 0:02:16]}  Bxc3 {[%clk 0:02:17]} 17. Nxc3 {[%clk 0:02:12]}  Nb4 {[%clk 0:02:13]} 18. cxd6 {[%clk 0:02:03]}  cxd6 {[%clk 0:02:07]} 19. d5 {[%clk 0:01:58]}  Na6 {[%clk 0:02:01]} 20. Bf4 {[%clk 0:01:53]}  Nc5 {[%clk 0:02:00]} 21. Bc2 {[%clk 0:01:52]}  h6 {[%clk 0:02:01]} 22. b4 {[%clk 0:01:47]}  Nb7 {[%clk 0:01:56]} 23. Nb5 {[%clk 0:01:40]}  a6 {[%clk 0:01:55]} 24. Nd4 {[%clk 0:01:39]}  Qb6 {[%clk 0:01:53]} 25. Nc6 {[%clk 0:01:36]}  Rd8 {[%clk 0:01:52]} 26. Be3 {[%clk 0:01:36]}  Qc7 {[%clk 0:01:50]} 27. Bb3 {[%clk 0:01:29]}  Re8 {[%clk 0:01:49]} 28. Bd4 {[%clk 0:01:26]}  Ne4 {[%clk 0:01:46]} 29. Rbc1 {[%clk 0:01:23]}  Qd7 {[%clk 0:01:45]} 30. Rc2 {[%clk 0:01:04]}  Qh3 {[%clk 0:01:44]} 31. Re2 {[%clk 0:00:55]}  Ng5 {[%clk 0:01:43]} 32. Rxe8+ {[%clk 0:00:55]}  Kxe8 {[%clk 0:01:43]} 33. Re1+ {[%clk 0:00:55]}  Kf8 {[%clk 0:01:43]} 34. Re3 {[%clk 0:00:55]}  Qg4 {[%clk 0:01:39]} 35. Kg2 {[%clk 0:00:45]}  h5 {[%clk 0:01:38]} 36. h4 {[%clk 0:00:42]}  Nh7 {[%clk 0:01:34]} 37. f3 {[%clk 0:00:32]}  Qf5 {[%clk 0:01:32]} 38. Re2 {[%clk 0:00:25]}  Nf6 {[%clk 0:01:23]} 39. Rd2 {[%clk 0:00:24]}  Rh6 {[%clk 0:01:12]} 40. a4 {[%clk 0:00:23]}  Rg6 {[%clk 0:01:11]} 41. a5 {[%clk 0:00:20]}  Qf4 {[%clk 0:01:08]} 42. Rf2 {[%clk 0:00:08]}  Rxg3+ {[%clk 0:01:06]} 43. Kf1 {[%clk 0:00:09]}  Rxf3 {[%clk 0:01:06]} 44. Rxf3 {[%clk 0:00:08]}  Qxf3+ {[%clk 0:01:07]} 45. Ke1 {[%clk 0:00:09]}  Qxb3 {[%clk 0:01:07]} 46. Bxf6 {[%clk 0:00:09]}  gxf6 {[%clk 0:01:07]} 47. Kd2 {[%clk 0:00:09]}  Qxd5+ {[%clk 0:01:07]} 0-1


[Site "https://www.chess.com"]

[Event "Titled Tuesday Blitz February 07 Early 2023"]
[White "Korchmar, Vasiliy"]
[Black "Jovic, Stanoje"]
[WhiteFideId "24131750"]
[BlackFideId "905020"]
[WhiteElo "2438"]
[BlackElo "2075"]
[Result "1-0"]
[Round "06"]
[TimeControl "180+2"]
[Date "2023.02.07"]
[WhiteClock "0:01:29"]
[BlackClock "0:00:10"]

1. e4 {[%clk 0:02:55]}  c6 {[%clk 0:02:59]} 2. d4 {[%clk 0:02:55]}  d5 {[%clk 0:02:59]} 3. e5 {[%clk 0:02:56]}  c5 {[%clk 0:02:59]} 4. dxc5 {[%clk 0:02:55]}  e6 {[%clk 0:02:59]} 5. Nf3 {[%clk 0:02:53]}  Bxc5 {[%clk 0:02:59]} 6. Bd3 {[%clk 0:02:53]}  Ne7 {[%clk 0:02:58]} 7. O-O {[%clk 0:02:54]}  Ng6 {[%clk 0:02:58]} 8. a3 {[%clk 0:02:50]}  Nc6 {[%clk 0:02:57]} 9. b4 {[%clk 0:02:47]}  Be7 {[%clk 0:02:53]} 10. Re1 {[%clk 0:02:43]}  f6 {[%clk 0:02:51]} 11. Bb2 {[%clk 0:02:32]}  Ngxe5 {[%clk 0:02:45]} 12. Nxe5 {[%clk 0:02:30]}  fxe5 {[%clk 0:02:43]} 13. b5 {[%clk 0:02:27]}  Qb6 {[%clk 0:01:59]} 14. Qh5+ {[%clk 0:02:17]}  Kd8 {[%clk 0:01:53]} 15. Nc3 {[%clk 0:02:10]}  Rf8 {[%clk 0:01:41]} 16. Nd1 {[%clk 0:02:02]}  e4 {[%clk 0:01:35]} 17. Bf1 {[%clk 0:01:55]}  Nd4 {[%clk 0:01:30]} 18. Ne3 {[%clk 0:01:37]}  Nxb5 {[%clk 0:01:19]} 19. Bxg7 {[%clk 0:01:34]}  Rg8 {[%clk 0:00:39]} 20. Qxh7 {[%clk 0:01:32]}  Rxg7 {[%clk 0:00:39]} 21. Qxg7 {[%clk 0:01:33]}  Nd4 {[%clk 0:00:33]} 22. Rab1 {[%clk 0:01:28]}  Qc5 {[%clk 0:00:27]} 23. c4 {[%clk 0:01:29]}  Nc6 {[%clk 0:00:10]} 24. cxd5 {[%clk 0:01:28]}  exd5 {[%clk 0:00:10]} 25. Nxd5 {[%clk 0:01:29]} 1-0


[Site "https://www.chess.com"]

[Event "Titled Tuesday Blitz February 07 Early 2023"]
[White "Skurikhin, Dmitrij"]
[Black "Janaszak, Dawid"]
[WhiteFideId "4161297"]
[BlackFideId "1119206"]
[WhiteElo "2297"]
[BlackElo "2316"]
[Result "0-1"]
[Round "06"]
[TimeControl "180+2"]
[Date "2023.02.07"]
[WhiteClock "0:00:02"]
[BlackClock "0:00:04"]

1. e4 {[%clk 0:03:00]}  c5 {[%clk 0:02:57]} 2. Nf3 {[%clk 0:02:57]}  Nc6 {[%clk 0:02:57]} 3. Bb5 {[%clk 0:02:57]}  e5 {[%clk 0:02:57]} 4. Bxc6 {[%clk 0:02:55]}  bxc6 {[%clk 0:02:54]} 5. O-O {[%clk 0:02:54]}  d6 {[%clk 0:02:51]} 6. h3 {[%clk 0:02:53]}  Nf6 {[%clk 0:02:51]} 7. Re1 {[%clk 0:02:52]}  Be7 {[%clk 0:02:52]} 8. c3 {[%clk 0:02:52]}  O-O {[%clk 0:02:53]} 9. d4 {[%clk 0:02:52]}  cxd4 {[%clk 0:02:53]} 10. cxd4 {[%clk 0:02:53]}  exd4 {[%clk 0:02:51]} 11. Qxd4 {[%clk 0:02:50]}  Bb7 {[%clk 0:02:42]} 12. Nc3 {[%clk 0:02:49]}  d5 {[%clk 0:02:40]} 13. exd5 {[%clk 0:02:47]}  Nxd5 {[%clk 0:02:38]} 14. Nxd5 {[%clk 0:02:30]}  cxd5 {[%clk 0:02:37]} 15. Bf4 {[%clk 0:02:30]}  Re8 {[%clk 0:02:25]} 16. Rad1 {[%clk 0:02:26]}  Qa5 {[%clk 0:02:17]} 17. a3 {[%clk 0:02:12]}  Bf8 {[%clk 0:02:17]} 18. Bd2 {[%clk 0:02:00]}  Qc7 {[%clk 0:02:07]} 19. Bc3 {[%clk 0:01:59]}  Re4 {[%clk 0:02:04]} 20. Rxe4 {[%clk 0:01:49]}  dxe4 {[%clk 0:02:05]} 21. Ne5 {[%clk 0:01:49]}  f6 {[%clk 0:01:32]} 22. Qd7 {[%clk 0:01:28]}  Qxd7 {[%clk 0:01:27]} 23. Nxd7 {[%clk 0:01:18]}  Be7 {[%clk 0:01:21]} 24. Bb4 {[%clk 0:01:09]}  Kf7 {[%clk 0:00:58]} 25. Bxe7 {[%clk 0:01:04]}  Kxe7 {[%clk 0:00:59]} 26. Nc5 {[%clk 0:01:04]}  Bc6 {[%clk 0:00:59]} 27. b4 {[%clk 0:01:04]}  f5 {[%clk 0:00:54]} 28. g4 {[%clk 0:01:00]}  g6 {[%clk 0:00:54]} 29. Rd4 {[%clk 0:00:57]}  a5 {[%clk 0:00:52]} 30. Kh2 {[%clk 0:00:54]}  axb4 {[%clk 0:00:51]} 31. axb4 {[%clk 0:00:55]}  Ra2 {[%clk 0:00:50]} 32. Kg3 {[%clk 0:00:54]}  Ra3+ {[%clk 0:00:51]} 33. Kf4 {[%clk 0:00:45]}  Rf3+ {[%clk 0:00:45]} 34. Ke5 {[%clk 0:00:44]}  Rxf2 {[%clk 0:00:46]} 35. Rd6 {[%clk 0:00:43]}  Be8 {[%clk 0:00:38]} 36. Rb6 {[%clk 0:00:38]}  e3 {[%clk 0:00:32]} 37. Rb7+ {[%clk 0:00:38]}  Kd8 {[%clk 0:00:30]} 38. Rb8+ {[%clk 0:00:10]}  Ke7 {[%clk 0:00:24]} 39. Rb7+ {[%clk 0:00:07]}  Kf8 {[%clk 0:00:10]} 40. Ne6+ {[%clk 0:00:06]}  Kg8 {[%clk 0:00:10]} 41. Kf6 {[%clk 0:00:05]}  fxg4+ {[%clk 0:00:10]} 42. Kg5 {[%clk 0:00:03]}  e2 {[%clk 0:00:08]} 43. Rg7+ {[%clk 0:00:02]}  Kh8 {[%clk 0:00:08]} 44. Re7 {[%clk 0:00:03]}  Bf7 {[%clk 0:00:07]} 45. Kh6 {[%clk 0:00:02]}  gxh3 {[%clk 0:00:04]} 0-1


[Site "https://www.chess.com"]

[Event "Titled Tuesday Blitz February 07 Early 2023"]
[White "Plazuelo Pascual, Juan"]
[Black "Levitan, Caleb Levi"]
[WhiteFideId "32059566"]
[BlackFideId "14332620"]
[WhiteElo "2449"]
[BlackElo "2129"]
[Result "1-0"]
[Round "06"]
[TimeControl "180+2"]
[Date "2023.02.07"]
[WhiteClock "0:01:16"]
[BlackClock "0:00:02"]

1. e4 {[%clk 0:03:00]}  c5 {[%clk 0:02:59]} 2. Nf3 {[%clk 0:03:00]}  e6 {[%clk 0:02:58]} 3. c3 {[%clk 0:03:01]}  Nf6 {[%clk 0:02:56]} 4. e5 {[%clk 0:03:01]}  Nd5 {[%clk 0:02:56]} 5. d4 {[%clk 0:03:02]}  Nc6 {[%clk 0:02:53]} 6. c4 {[%clk 0:02:56]}  Nb6 {[%clk 0:02:44]} 7. d5 {[%clk 0:02:56]}  Nb8 {[%clk 0:02:19]} 8. d6 {[%clk 0:02:28]}  f6 {[%clk 0:02:14]} 9. Bd3 {[%clk 0:02:23]}  Nc6 {[%clk 0:01:56]} 10. O-O {[%clk 0:02:23]}  g6 {[%clk 0:01:43]} 11. Nc3 {[%clk 0:02:12]}  Nxe5 {[%clk 0:01:30]} 12. Nxe5 {[%clk 0:02:12]}  fxe5 {[%clk 0:01:30]} 13. Nb5 {[%clk 0:02:13]}  Rb8 {[%clk 0:01:12]} 14. Qf3 {[%clk 0:02:07]}  Na8 {[%clk 0:01:10]} 15. Qg3 {[%clk 0:01:34]}  Bg7 {[%clk 0:00:24]} 16. Bxg6+ {[%clk 0:01:21]}  hxg6 {[%clk 0:00:24]} 17. Qxg6+ {[%clk 0:01:21]}  Kf8 {[%clk 0:00:24]} 18. Bg5 {[%clk 0:01:22]}  Qe8 {[%clk 0:00:23]} 19. Be7+ {[%clk 0:01:22]}  Kg8 {[%clk 0:00:10]} 20. Qxe8+ {[%clk 0:01:20]}  Kh7 {[%clk 0:00:09]} 21. Qh5+ {[%clk 0:01:19]}  Kg8 {[%clk 0:00:09]} 22. Qe8+ {[%clk 0:01:16]}  Kh7 {[%clk 0:00:09]} 23. Qf7 {[%clk 0:01:17]}  a6 {[%clk 0:00:07]} 24. Rad1 {[%clk 0:01:15]}  axb5 {[%clk 0:00:06]} 25. Rd3 {[%clk 0:01:15]}  Rg8 {[%clk 0:00:02]} 26. Rh3# {[%clk 0:01:16]} 1-0


[Site "https://www.chess.com"]

[Event "Titled Tuesday Blitz February 07 Early 2023"]
[White "Larina, Maria"]
[Black "Ingebretsen, Jens E"]
[WhiteFideId "24113182"]
[BlackFideId "1522965"]
[WhiteElo "1948"]
[BlackElo "2342"]
[Result "0-1"]
[Round "06"]
[TimeControl "180+2"]
[Date "2023.02.07"]
[WhiteClock "0:00:01"]
[BlackClock "0:01:09"]

1. e4 {[%clk 0:03:00]}  e5 {[%clk 0:02:58]} 2. Nf3 {[%clk 0:03:00]}  Nc6 {[%clk 0:02:58]} 3. Nc3 {[%clk 0:03:00]}  Nf6 {[%clk 0:02:58]} 4. Bb5 {[%clk 0:03:00]}  Nd4 {[%clk 0:02:56]} 5. Bc4 {[%clk 0:03:00]}  c6 {[%clk 0:02:55]} 6. Nxd4 {[%clk 0:02:18]}  exd4 {[%clk 0:02:54]} 7. e5 {[%clk 0:02:17]}  dxc3 {[%clk 0:02:45]} 8. exf6 {[%clk 0:02:16]}  cxd2+ {[%clk 0:02:45]} 9. Bxd2 {[%clk 0:02:14]}  Qxf6 {[%clk 0:02:45]} 10. O-O {[%clk 0:02:11]}  d5 {[%clk 0:02:44]} 11. Bc3 {[%clk 0:02:10]}  Qh6 {[%clk 0:02:22]} 12. Re1+ {[%clk 0:02:10]}  Be6 {[%clk 0:02:22]} 13. Bd3 {[%clk 0:02:00]}  Bd6 {[%clk 0:02:20]} 14. g3 {[%clk 0:01:57]}  O-O {[%clk 0:02:20]} 15. Qf3 {[%clk 0:01:46]}  Rae8 {[%clk 0:02:15]} 16. b3 {[%clk 0:01:42]}  Qh3 {[%clk 0:02:01]} 17. Bf1 {[%clk 0:01:37]}  Qf5 {[%clk 0:01:59]} 18. Qxf5 {[%clk 0:01:28]}  Bxf5 {[%clk 0:01:59]} 19. Bd3 {[%clk 0:01:15]}  Bxd3 {[%clk 0:01:56]} 20. cxd3 {[%clk 0:01:16]}  f6 {[%clk 0:01:56]} 21. Kf1 {[%clk 0:01:10]}  Kf7 {[%clk 0:01:56]} 22. a3 {[%clk 0:00:59]}  h5 {[%clk 0:01:47]} 23. h4 {[%clk 0:00:59]}  g5 {[%clk 0:01:36]} 24. hxg5 {[%clk 0:00:59]}  fxg5 {[%clk 0:01:36]} 25. Kg2 {[%clk 0:00:59]}  g4 {[%clk 0:01:33]} 26. Bd4 {[%clk 0:00:51]}  c5 {[%clk 0:01:29]} 27. Be3 {[%clk 0:00:45]}  d4 {[%clk 0:01:23]} 28. Bd2 {[%clk 0:00:43]}  Rxe1 {[%clk 0:01:15]} 29. Rxe1 {[%clk 0:00:42]}  Re8 {[%clk 0:01:16]} 30. Rxe8 {[%clk 0:00:28]}  Kxe8 {[%clk 0:01:17]} 31. f3 {[%clk 0:00:23]}  Kf7 {[%clk 0:01:14]} 32. fxg4 {[%clk 0:00:22]}  hxg4 {[%clk 0:01:14]} 33. Kf2 {[%clk 0:00:17]}  Ke6 {[%clk 0:01:15]} 34. Bg5 {[%clk 0:00:15]}  Kd5 {[%clk 0:01:14]} 35. Bh4 {[%clk 0:00:13]}  b5 {[%clk 0:01:13]} 36. Ke2 {[%clk 0:00:13]}  c4 {[%clk 0:01:10]} 37. bxc4+ {[%clk 0:00:10]}  bxc4 {[%clk 0:01:11]} 38. dxc4+ {[%clk 0:00:04]}  Kxc4 {[%clk 0:01:11]} 39. a4 {[%clk 0:00:05]}  d3+ {[%clk 0:01:11]} 40. Kd1 {[%clk 0:00:04]}  Bb4 {[%clk 0:01:06]} 41. Bf6 {[%clk 0:00:02]}  a5 {[%clk 0:01:06]} 42. Be5 {[%clk 0:00:02]}  Kb3 {[%clk 0:01:06]} 43. Bf4 {[%clk 0:00:01]}  Kxa4 {[%clk 0:01:07]} 44. Bc1 {[%clk 0:00:01]}  Kb3 {[%clk 0:01:07]} 45. Be3 {[%clk 0:00:01]}  a4 {[%clk 0:01:07]} 46. Bd4 {[%clk 0:00:01]}  a3 {[%clk 0:01:08]} 47. Ba1 {[%clk 0:00:01]}  a2 {[%clk 0:01:08]} 48. Bd4 {[%clk 0:00:01]}  Bc3 {[%clk 0:01:09]} 49. Bxc3 {[%clk 0:00:01]}  Kxc3 {[%clk 0:01:09]} 0-1


[Site "https://www.chess.com"]

[Event "Titled Tuesday Blitz February 07 Early 2023"]
[White "Csonka, Balazs"]
[Black "Seletsky, Grigory"]
[WhiteFideId "742910"]
[BlackFideId "14112191"]
[WhiteElo "2496"]
[BlackElo "2259"]
[Result "1-0"]
[Round "06"]
[TimeControl "180+2"]
[Date "2023.02.07"]
[WhiteClock "0:00:11"]
[BlackClock "0:00:06"]

1. c4 {[%clk 0:03:00]}  c5 {[%clk 0:02:57]} 2. Nf3 {[%clk 0:02:59]}  Nc6 {[%clk 0:02:56]} 3. Nc3 {[%clk 0:02:57]}  Nf6 {[%clk 0:02:54]} 4. e3 {[%clk 0:02:56]}  d5 {[%clk 0:02:50]} 5. cxd5 {[%clk 0:02:57]}  Nxd5 {[%clk 0:02:50]} 6. Bb5 {[%clk 0:02:58]}  Nxc3 {[%clk 0:02:49]} 7. bxc3 {[%clk 0:02:59]}  Qc7 {[%clk 0:02:46]} 8. O-O {[%clk 0:02:54]}  e6 {[%clk 0:02:45]} 9. d4 {[%clk 0:02:54]}  Be7 {[%clk 0:02:43]} 10. e4 {[%clk 0:02:37]}  O-O {[%clk 0:02:34]} 11. Be3 {[%clk 0:02:32]}  Rd8 {[%clk 0:02:25]} 12. Rc1 {[%clk 0:01:58]}  Qa5 {[%clk 0:02:10]} 13. Qa4 {[%clk 0:01:52]}  Qxa4 {[%clk 0:02:06]} 14. Bxa4 {[%clk 0:01:53]}  Bd7 {[%clk 0:02:02]} 15. Rfd1 {[%clk 0:01:24]}  Na5 {[%clk 0:01:47]} 16. Bxd7 {[%clk 0:01:02]}  Rxd7 {[%clk 0:01:45]} 17. Ne5 {[%clk 0:00:39]}  Rc7 {[%clk 0:01:37]} 18. Rb1 {[%clk 0:00:37]}  f6 {[%clk 0:01:28]} 19. Nd3 {[%clk 0:00:37]}  cxd4 {[%clk 0:01:25]} 20. cxd4 {[%clk 0:00:38]}  b6 {[%clk 0:01:15]} 21. Nf4 {[%clk 0:00:34]}  Kf7 {[%clk 0:01:14]} 22. d5 {[%clk 0:00:34]}  exd5 {[%clk 0:01:12]} 23. Nxd5 {[%clk 0:00:35]}  Rc2 {[%clk 0:01:05]} 24. Rbc1 {[%clk 0:00:14]}  Rac8 {[%clk 0:01:04]} 25. Kf1 {[%clk 0:00:13]}  Ba3 {[%clk 0:00:56]} 26. Rxc2 {[%clk 0:00:13]}  Rxc2 {[%clk 0:00:56]} 27. Rd2 {[%clk 0:00:10]}  Rxd2 {[%clk 0:00:52]} 28. Bxd2 {[%clk 0:00:11]}  Nc4 {[%clk 0:00:50]} 29. Bf4 {[%clk 0:00:07]}  Bd6 {[%clk 0:00:43]} 30. Bc1 {[%clk 0:00:07]}  Ke6 {[%clk 0:00:41]} 31. h3 {[%clk 0:00:04]}  b5 {[%clk 0:00:41]} 32. g4 {[%clk 0:00:04]}  Ke5 {[%clk 0:00:37]} 33. f3 {[%clk 0:00:04]}  Kd4 {[%clk 0:00:33]} 34. Ke2 {[%clk 0:00:04]}  a5 {[%clk 0:00:32]} 35. Bd2 {[%clk 0:00:03]}  b4 {[%clk 0:00:30]} 36. Be1 {[%clk 0:00:03]}  Na3 {[%clk 0:00:22]} 37. Bf2+ {[%clk 0:00:02]}  Kc4 {[%clk 0:00:21]} 38. Kd2 {[%clk 0:00:02]}  a4 {[%clk 0:00:20]} 39. Ne3+ {[%clk 0:00:02]}  Kb5 {[%clk 0:00:21]} 40. Nf5 {[%clk 0:00:02]}  Nc4+ {[%clk 0:00:20]} 41. Kd3 {[%clk 0:00:02]}  Bf8 {[%clk 0:00:20]} 42. Kc2 {[%clk 0:00:01]}  g6 {[%clk 0:00:21]} 43. Nd4+ {[%clk 0:00:01]}  Ka6 {[%clk 0:00:19]} 44. Ne6 {[%clk 0:00:02]}  Be7 {[%clk 0:00:18]} 45. Nc7+ {[%clk 0:00:02]}  Ka5 {[%clk 0:00:15]} 46. Nd5 {[%clk 0:00:03]}  Bd8 {[%clk 0:00:15]} 47. Be1 {[%clk 0:00:03]}  Ne5 {[%clk 0:00:12]} 48. Bxb4+ {[%clk 0:00:02]}  Kb5 {[%clk 0:00:13]} 49. f4 {[%clk 0:00:03]}  Nf3 {[%clk 0:00:10]} 50. Bc3 {[%clk 0:00:03]}  Ng1 {[%clk 0:00:09]} 51. Bxf6 {[%clk 0:00:02]}  Bxf6 {[%clk 0:00:07]} 52. Nxf6 {[%clk 0:00:03]}  Nxh3 {[%clk 0:00:07]} 53. f5 {[%clk 0:00:04]}  Nf2 {[%clk 0:00:06]} 54. Nxh7 {[%clk 0:00:03]}  Nxg4 {[%clk 0:00:03]} 55. fxg6 {[%clk 0:00:03]}  Nh6 {[%clk 0:00:01]} 56. g7 {[%clk 0:00:04]}  Ng8 {[%clk 0:00:01]} 57. e5 {[%clk 0:00:04]}  Kc6 {[%clk 0:00:01]} 58. Nf6 {[%clk 0:00:05]}  Ne7 {[%clk 0:00:01]} 59. g8=Q {[%clk 0:00:05]}  Nxg8 {[%clk 0:00:01]} 60. Nxg8 {[%clk 0:00:06]}  Kd5 {[%clk 0:00:01]} 61. Kc3 {[%clk 0:00:06]}  Kxe5 {[%clk 0:00:02]} 62. Kb4 {[%clk 0:00:07]}  Kd6 {[%clk 0:00:02]} 63. Kxa4 {[%clk 0:00:07]}  Kc6 {[%clk 0:00:03]} 64. Kb4 {[%clk 0:00:08]}  Kb6 {[%clk 0:00:04]} 65. a4 {[%clk 0:00:08]}  Ka6 {[%clk 0:00:04]} 66. a5 {[%clk 0:00:09]}  Kb7 {[%clk 0:00:03]} 67. Kb5 {[%clk 0:00:10]}  Ka7 {[%clk 0:00:04]} 68. Nf6 {[%clk 0:00:11]}  Kb7 {[%clk 0:00:04]} 69. Ne4 {[%clk 0:00:12]}  Ka7 {[%clk 0:00:05]} 70. Nc5 {[%clk 0:00:13]}  Kb8 {[%clk 0:00:04]} 71. Kb6 {[%clk 0:00:14]}  Ka8 {[%clk 0:00:05]} 72. Ne6 {[%clk 0:00:10]}  Kb8 {[%clk 0:00:05]} 73. a6 {[%clk 0:00:11]}  Kc8 {[%clk 0:00:06]} 74. a7 {[%clk 0:00:11]}  Kd7 {[%clk 0:00:06]} 75. Nc5+ {[%clk 0:00:11]} 1-0


[Site "https://www.chess.com"]